Cogmind - Beta 16 @@@ ROGUE MODE // 2025.10.23 @ 08:25:18 Player: lepire Result: Self-destructed Performance ------------- Evolutions (3) 1500 Regions Visited (4) 800 Robots Destroyed (87) 435 Value Destroyed (2426) 2426 Prototype IDs (10) 200 Alien Tech Used (0) 0 Bonus (0) 0 TOTAL SCORE: 5361 Bonus ------- None Cogmind --------- Core Integrity 638/700 Matter 57/300 Energy 140/140 System Corruption 1% Temperature Cool (0) Movement Rolling (150) Ox4 Location -7/Factory Parts ------- > --- POWER (1) -------- Light Deuterium Engine > --- PROPULSION (3) --- Armored Treads Armored Wheel > --- UTILITY (5) ------ Large Storage Unit Reactive Plating Reflective Plating > --- WEAPON (4) ------- Advanced Beam Cannon Gauss Rifle Assault Cannon > --- INVENTORY (15) --- Light Nuclear Core Armored Treads Armored Wheel Compact Matter Pod (0) Advanced Visual Processing Unit Improved Utility Shielding Improved Weapon Shielding Hardened Medium Armor Plating Hardened Medium Armor Plating Hardened Medium Armor Plating Recalibrator Advanced Beam Cannon Ion Cannon Mini Grenade Launcher Heavy Mace Peak State ------------ > --- POWER ------------ Light Deuterium Engine > --- PROPULSION ------- Armored Treads Armored Wheel Armored Wheel > --- UTILITY ---------- Large Storage Unit Heavy Armor Plating Reactive Plating Reflective Plating > --- WEAPON ----------- Advanced Beam Cannon Assault Cannon Assault Cannon Assault Cannon > --- INVENTORY -------- Light Nuclear Core Armored Treads Armored Wheel Compact Matter Pod Improved Utility Shielding Improved Weapon Shielding Hardened Medium Armor Plating Hardened Medium Armor Plating Hardened Medium Armor Plating Recalibrator Advanced Beam Cannon Ion Cannon Mini Grenade Launcher Heavy Mace [Rating: 39] Favorites ----------- Power Light Deuterium Engine Engine Light Deuterium Engine Power Core Light Nuclear Core Propulsion Armored Treads Treads Armored Treads Leg Aluminum Leg Wheel Armored Wheel Flight Unit Improved VTOL Module Utility Large Storage Unit Device Seismic Detector Storage Large Storage Unit Processor Visual Processing Unit Protection Hardened Medium Armor Plating Weapon Assault Cannon Energy Gun Medium Laser Energy Cannon Advanced Beam Cannon Ballistic Gun Subdweller Machine Gun Ballistic Cannon Assault Cannon Launcher Mini Grenade Launcher Special Weapon Mining Laser Impact Weapon Heavy Mace Build | -11 -10 -10 -8 -7 ------- Run | Yrd Mat Sub Mat Fac Slots Evolved 6 | . . . 4 2 Power . | . . . . . Propulsion 1 | . . . . 1 Utility 3 | . . . 2 1 Weapon 2 | . . . 2 . Parts Attached 58 | 4 10 7 31 6 Power 7 | . 2 1 4 . Engine 4 | . 1 1 2 . Core 3 | . 1 . 2 . Reactor . | . . . . . Propulsion 15 | 2 2 . 10 1 Treads 7 | 1 1 . 5 . Leg . | . . . . . Wheel 7 | 1 1 . 4 1 Hover . | . . . . . Flight 1 | . . . 1 . Utility 14 | 1 1 1 8 3 Device 6 | 1 . 1 4 . Storage 1 | . 1 . . . Processor 3 | . . . 3 . Hackware . | . . . . . Protection 4 | . . . 1 3 Artifact . | . . . . . Weapon 22 | 1 5 5 9 2 Energy Gun 5 | 1 2 1 1 . Energy Cannon 3 | . . . 3 . Ballistic Gun 6 | . 1 2 2 1 Ballistic Cannon 3 | . . . 3 . Launcher 3 | . 1 2 . . Special Weapon 1 | . 1 . . . Impact Weapon 1 | . . . . 1 Slashing Weapon . | . . . . . Piercing Weapon . | . . . . . Special Melee Weapon . | . . . . . Unidentified Prototypes 3 | . . . 3 . Parts Lost 18 | . . 1 13 4 Power 2 | . . . 2 . Propulsion 3 | . . . 2 1 Utility 5 | . . 1 3 1 Weapon 8 | . . . 6 2 Highest Loss Streak 3 | . . 1 3 2 To Critical Strikes . | . . . . . Average Backups 10 | 5 7 8 10 13 Power . | 1 1 . . 1 Propulsion 2 | 2 1 1 3 2 Utility 4 | . 3 3 4 6 Weapon 2 | 1 2 3 2 3 Tool/Special . | . . . . . Unused Backups 27 | 7 2 1 10 7 Power 2 | 1 . 1 . . Propulsion 11 | 4 . . 6 1 Utility 10 | 1 1 . 2 6 Weapon 4 | 1 1 . 2 . Tool/Special . | . . . . . Average Slot Usage (%) 88 | . 100 93 82 89 Engine 7 | . 4 11 6 7 Core 2 | . 9 2 . . Treads 10 | . 14 14 9 7 Wheel 11 | . 14 14 8 14 Device 6 | . 14 7 6 . Storage 10 | . 14 14 9 7 Processor 6 | . . . 12 1 Protection 4 | . . . 3 22 Energy Gun 8 | . 23 17 2 . Energy Cannon 3 | . . . 5 7 Ballistic Gun 4 | . 1 5 5 . Ballistic Cannon 7 | . . . 10 16 Launcher 2 | . . 4 2 . Peak Build Rating 39 | 7 10 15 34 39 Average Rating 19 | 6 9 11 23 36 On Entrance 13 | 6 7 10 13 30 Avg Prop Armor Cover (%) 10 | 11 11 13 8 4 Naked Turns . | . . . . . Heaviest Build 73 | 14 30 34 53 73 Greatest Support 40 | 20 20 10 40 24 Greatest Overweight (x) 4 | . 2 3 4 4 Average Overweight (x) 2 | . . 2 2 2 Largest Inventory Capacity 15 | 8 15 15 15 15 Average Capacity 13 | 8 9 15 15 15 Most Carried 15 | 7 9 10 15 15 Average Carried 10 | 5 7 9 11 13 Final Capacity 15 | 8 15 15 15 15 Final Carried 15 | 6 9 10 15 15 Class Distribution -------------------- 58% | Mutant 26% | Tank 9% | Gunner 4% | Skirmisher Dominant Class ---------------- Mutant | -10/Materials Mutant | -10/Subcaves Mutant | -8/Materials Tank | -7/Factory Resources | -11 -10 -10 -8 -7 ----------- Run | Yrd Mat Sub Mat Fac Matter Collected 2191 | 264 203 223 1144 357 Remotely . | . . . . . Salvage Created 2223 | 186 308 203 1144 382 Parts 131 | 16 21 5 73 16 Haulers Intercepted 5 | . 1 . 3 1 Recyclers Shooed 3 | . 1 . 2 . Parts Field Recycled 8 | . . . 8 . Retrieved Matter 56 | . . . 56 . Parts Self-Destructed 8 | . . 8 . . Prevented . | . . . . . Parts Restored 2 | . . . 2 . Broken 2 | . . . 2 . Kills | -11 -10 -10 -8 -7 ------- Run | Yrd Mat Sub Mat Fac Combat Hostiles Destroyed 51 | . 8 7 26 10 Melee 1 | . . . 1 . Guns 15 | . 7 . 6 2 Cannons 14 | . . . 8 6 AOE 20 | . 1 7 11 1 Classes Destroyed 16 | 2 5 2 6 1 Worker 6 | . . . 5 1 Builder 6 | . . . 6 . Tunneler 7 | 6 . . 1 . Hauler 5 | . 1 . 3 1 Recycler 5 | 1 . . 3 1 Mechanic 1 | . . . 1 . Operator 1 | . 1 . . . Watcher 5 | . 1 . 3 1 Swarmer 6 | . 3 . 3 . Grunt 33 | . 5 2 20 6 Duelist 2 | . . . 1 1 Sentry 1 | . . . 1 . Hunter 3 | . . . 1 2 Programmer 1 | . . . . 1 Artisan 1 | . . 1 . . Subdweller 5 | . . 5 . . Best Kill Streak 10 | 2 5 3 10 5 Combat Bots Only 4 | . 3 3 4 4 Max Kills in Single Turn 4 | 1 1 2 4 1 Gunslinging . | . . . . . Exploded 2 | . 1 2 2 1 Melee 1 | . . . 1 . Uniques/NPCs Destroyed . | . . . . . Combat | -11 -10 -10 -8 -7 -------- Run | Yrd Mat Sub Mat Fac Hostile Shots Fired 363 | . 35 8 224 96 Missed 89 | . 7 2 61 19 Hits 274 | . 28 6 163 77 Melee 1 | . . . . 1 Projectile 273 | . 28 6 163 76 Critical Strikes 9 | . 1 . 6 2 Damage Taken 4178 | . 413 196 2562 1007 Core 579 | . 101 3 413 62 Absorbed by Shields . | . . . . . Ignored by Resistances 140 | . . . . 140 Regen/Repaired (Parts) 162 | . . . 162 . Core Remaining (%) 60 | 100 . 58 24 . Volleys Fired 266 | 24 47 27 119 49 Largest 4 | 2 2 2 4 2 Hottest 250 | 70 150 250 210 105 Shots Fired 437 | 48 72 32 211 74 Gun 226 | 48 65 12 93 8 Cannon 160 | . . . 99 61 Launcher 40 | . 3 14 18 5 Special 11 | . 4 6 1 . Kinetic 255 | 24 4 7 160 60 Thermal 142 | 24 65 11 33 9 Explosive 40 | . 3 14 18 5 Electromagnetic . | . . . . . Robot Hit Streak 12 | 8 6 10 12 10 Robot Miss Streak 6 | 3 5 1 6 4 Penetration Max 1 | . . . . 1 Secondary Targets 1 | . 1 . . . Max Gunslinging Chain 1 | . 1 . . . Shots Hit Robots 247 | 25 36 15 118 53 Core Hits 152 | 12 18 11 90 21 Critical Kills 1 | . . . . 1 Critical Parts Destroyed 3 | . . . 2 1 Critical Strikes 13 | 1 2 . 7 3 Burn 4 | 1 2 . 1 . Destroy 3 | . . . 2 1 Blast 5 | . . . 4 1 Smash 1 | . . . . 1 Melee Attacks 7 | . . . . 7 Impact 7 | . . . . 7 Slashing . | . . . . . Piercing . | . . . . . Sneak Attacks 1 | . . . . 1 Combat Hostiles . | . . . . . Follow-up Attacks . | . . . . . Damage Inflicted 7637 | 283 657 766 4061 1870 Guns 2033 | 283 426 120 1012 192 Cannons 2241 | . . . 1308 933 Explosions 2996 | . 230 646 1648 472 Melee 273 | . . . . 273 Ramming 94 | . 1 . 93 . Kinetic 3208 | 99 24 120 1985 980 Thermal 1066 | 184 402 . 335 145 Explosive 2996 | . 230 646 1648 472 Electromagnetic . | . . . . . Impact 273 | . . . . 273 Slashing . | . . . . . Piercing . | . . . . . Highest Corruption 2 | . 2 2 . 1 Average Corruption 1 | . 2 2 . 1 Corruption Purged . | . . . . . Corruption Blocked . | . . . . . Effects 25 | . 5 20 . . Message Errors 7 | . . 7 . . Matter Fused 2 | . . 2 . . Heat Flow Errors 3 | . 1 2 . . Energy Discharges 4 | . 2 2 . . Data Loss (minor) 6 | . 2 4 . . Data Loss (major) 1 | . . 1 . . Alerts 2 | . . 2 . . Overload Shots 1 | . . 1 . . Effects 1 | . . 1 . . Energy Bleed 1 | . . 1 . . Overflow Damage 184 | . . 9 53 122 Projectiles 56 | . . . 25 31 Explosions 34 | . . 9 25 . Melee 94 | . . . 3 91 Knockbacks 27 | . . . 9 18 Impact 6 | . . . 2 4 Kinetic 21 | . . . 7 14 Secondary . | . . . . . Self-Inflicted Damage 178 | . 24 53 70 31 Shots 7 | . 1 3 2 1 Rammed 24 | . 2 . 22 . Targets Rammed 25 | . 2 . 23 . Kicked . | . . . . . Crushed 1 | . . . 1 . Highest Temperature 625 | 100 390 251 625 336 Average Temperature 104 | 33 83 101 102 155 Received Heat Transfer 1896 | . 135 24 1449 288 Effects 18 | . 3 . 9 6 Energy Bleed 1 | . . . 1 . Interference 11 | . 2 . 3 6 Short Circuit 3 | . . . 3 . Damage (minor) 2 | . 1 . 1 . Damage (major) 1 | . . . 1 . Siege Activations . | . . . . . Martial Activations . | . . . . . Shielding Activations . | . . . . . Robots Disrupted . | . . . . . Combat Hostiles . | . . . . . Robots Corrupted 4 | . . . 1 3 Combat Hostiles 1 | . . . . 1 Parts Fried 6 | . . . 1 5 Impact Corruptions 5 | . . . 1 4 Robots Melted . | . . . . . Combat Hostiles . | . . . . . Parts Melted 5 | 1 4 . . . Heat Transferred 2903 | 629 1238 . 777 259 Parts Sabotaged . | . . . . . Parts Stolen . | . . . . . Parts Stripped . | . . . . . Power Chain Reactions . | . . . . . Alert | -11 -10 -10 -8 -7 ------- Run | Yrd Mat Sub Mat Fac Maximum Alert Level 2 | . . . 2 . Low Security (%) 65 | 100 100 . 40 100 Level 1 32 | . . . 55 . Level 2 1 | . . . 3 . Level 3 . | . . . . . Level 4 . | . . . . . Level 5 . | . . . . . High Security . | . . . . . Max Security . | . . . . . Peak Influence 411 | 10 164 . 411 184 Initial 184 | . . . . 184 Average 140 | . 75 . 194 77 Influence Increases 1797 | 35 345 50 1082 285 Destroy 0b10 Robot/C 920 | . 160 40 520 200 Destroy 0b10 Robot/NC 180 | 35 15 . 110 20 Destroy Leader 190 | . 34 10 112 34 Successful Hack 45 | . 20 . 25 . Select Force Hacks 60 | . 30 . 30 . Disable Machine 60 | . . . 45 15 Destroy Structure 192 | . 26 . 150 16 Lose Combat Pursuer 150 | . 60 . 90 . Influence Decreases 1701 | 35 299 96 676 595 Entered New Map 245 | . . 23 . 222 Time Decay 1276 | 35 299 63 546 333 Lost Part 180 | . . 10 130 40 Squads Dispatched 12 | . 3 . 5 4 Investigation 5 | . 2 . 2 1 Extermination 1 | . . . . 1 Reinforcement 4 | . 1 . 3 . Assault 2 | . . . . 2 Garrison . | . . . . . Intercept . | . . . . . Searches Triggered . | . . . . . Construction Impeded 3 | . . . 3 . Haulers Reinforced . | . . . . . Active Scanning Responses . | . . . . . Cargo Convoy Interrupts 1 | . . . . 1 Stealth | -11 -10 -10 -8 -7 --------- Run | Yrd Mat Sub Mat Fac Distress Signals 5 | . . . 5 . Communications Jammed . | . . . . . Distress Signals . | . . . . . Times Spotted 100 | . 21 7 53 19 Peak Tracking Total 5 | . 4 2 5 5 Tactical Retreats 8 | . 2 . 6 . Traps | -11 -10 -10 -8 -7 ------- Run | Yrd Mat Sub Mat Fac Traps Triggered 3 | . 2 1 . . Indirectly . | . . . . . Trap Hack Attempts . | . . . . . Triggered . | . . . . . Disarmed . | . . . . . Reprogrammed . | . . . . . Reused . | . . . . . Traps Extracted . | . . . . . Installed . | . . . . . Triggered . | . . . . . Most Traps Carried 1 | . . 1 1 . Machines | -11 -10 -10 -8 -7 ---------- Run | Yrd Mat Sub Mat Fac Machines Disabled 4 | . . . 3 1 Max in Single Turn 2 | . . . 2 1 Garrison Access 1 | . . . . 1 Machines Repaired . | . . . . . Machines Dismantled . | . . . . . Machines Sabotaged . | . . . . . Overloaded Fab Kills . | . . . . . Hacking | -11 -10 -10 -8 -7 --------- Run | Yrd Mat Sub Mat Fac Machines Accessed 20 | . 6 1 9 4 Terminals 9 | . 3 . 6 . Fabricators 1 | . . . . 1 Repair Stations 3 | . 1 . 2 . Recycling Units 6 | . 2 . 1 3 Scanalyzers . | . . . . . Garrison Access . | . . . . . Total Hacks 40 | . 13 3 16 8 Successful 29 | . 11 3 11 4 Failed 11 | . 2 . 5 4 Catastrophic 1 | . . . . 1 Database Lockouts . | . . . . . Manual 9 | . 3 . 6 . Terminals 18 | . 7 . 11 . Fabricators 2 | . . . . 2 Repair Stations 4 | . 1 . 3 . Recycling Units 13 | . 5 . 2 6 Scanalyzers . | . . . . . Garrison Access . | . . . . . Terminal Hacks 14 | . 5 3 6 . Record 3 | . . 3 . . Prototype ID Bank 4 | . 2 . 2 . Emergency Access Points 1 | . . . 1 . Alert Level 1 | . . . 1 . Locate Traps 2 | . 2 . . . Transport Status 1 | . 1 . . . Registered Components 1 | . . . 1 . Zone Layout 1 | . . . 1 . Fabricator Hacks . | . . . . . Repair Station Hacks 2 | . . . 2 . Scan Component 1 | . . . 1 . Repair 1 | . . . 1 . Recycling Unit Hacks 9 | . 4 . 1 4 Process 2 | . 1 . . 1 Report Inventory 7 | . 3 . 1 3 Scanalyzer . | . . . . . Garrison Access Hacks . | . . . . . Unauthorized Hacks 4 | . 2 . 2 . Terminals . | . . . . . Fabricators . | . . . . . Repair Stations 2 | . 1 . 1 . Patch 2 | . 1 . 1 . Recycling Units 2 | . 1 . 1 . Tunnel 2 | . 1 . 1 . Scanalyzers . | . . . . . Garrison Access . | . . . . . Data Cores Recovered . | . . . . . Used . | . . . . . Hacking Detections 10 | . 1 . 6 3 Full Trace Events 1 | . . . . 1 Feedback Events . | . . . . . Feedback Blocked . | . . . . . Robot Schematics Acquired . | . . . . . Robots Built . | . . . . . Authchips . | . . . . . Time . | . . . . . Total Robot Build Rating . | . . . . . Part Schematics Acquired . | . . . . . Parts Built . | . . . . . Authchips . | . . . . . Time . | . . . . . Total Part Build Rating . | . . . . . Part Studies Acquired . | . . . . . Parts Repaired 1 | . . . 1 . Time 32 | . . . 32 . Parts Recycled . | . . . . . Recycled Matter 181 | . 156 . . 25 Retrieved Matter . | . . . . . Retrieved Components . | . . . . . Parts Scanalyzed . | . . . . . Part Schematics Acquired . | . . . . . Parts Damaged . | . . . . . Bothacking | -11 -10 -10 -8 -7 ------------ Run | Yrd Mat Sub Mat Fac Used RIF Installer . | . . . . . Robots Hacked . | . . . . . Non-combat . | . . . . . Combat . | . . . . . Robot Hacks Applied . | . . . . . Relay Couplers Released 2 | . . . . 2 Machine Destruction 2 | . . . . 2 Fabnet Peak Effective % . | . . . . . Robots Rewired . | . . . . . Allies Hacked . | . . . . . Hacks Repelled . | . . . . . Allies | -11 -10 -10 -8 -7 -------- Run | Yrd Mat Sub Mat Fac Total Allies . | . . . . . Largest Group . | . . . . . Highest-Rated Group . | . . . . . Highest-Rated Ally . | . . . . . Total Orders . | . . . . . Ally Attacks . | . . . . . Total Damage . | . . . . . Kills . | . . . . . Allies Corrupted . | . . . . . Allies Melted . | . . . . . Intel | -11 -10 -10 -8 -7 ------- Run | Yrd Mat Sub Mat Fac Active Infowar (turns) 3240 | 141 1043 639 1417 . Optics 896 | . . . 896 . Terrain 978 | . . 457 521 . Seismic 1366 | 141 1043 182 . . Robot Analysis Total . | . . . . . Derelict Logs Recovered . | . . . . . Drone Launches . | . . . . . Drone Recoveries . | . . . . . Exploration | -11 -10 -10 -8 -7 ------------- Run | Yrd Mat Sub Mat Fac Turns Passed 6081 | 252 1043 1174 2846 766 Spaces Moved 3644 | 154 741 877 1382 490 Core . | . . . . . Treads 536 | 38 86 . 412 . Legs . | . . . . . Wheels 3108 | 116 655 877 970 490 Hover . | . . . . . Flight . | . . . . . Fastest Speed 95 | 100 95 110 110 120 Average Speed 135 | 114 107 118 167 122 Slowest Speed 330 | 160 160 125 330 150 Overloaded Moves . | . . . . . Propulsion Burnouts . | . . . . . Robots Hopped . | . . . . . Potential Cave-ins . | . . . . . Cave-ins Triggered . | . . . . . Exploration Rate (%) 40 | 5 88 48 49 10 Regions Visited 4 Branch Regions 1 Pre-discovered Areas 2 | . 1 . 1 . Known Exits Taken . | . . . . . Unknown Exits Taken 4 | 1 1 1 1 . Scrap Searched 1 | . . 1 . . Spaces Dug 5 | . 4 . 1 . Terrain Destroyed 319 | . 28 89 183 19 Melee . | . . . . . Projectile 33 | . 4 . 27 2 AOE 286 | . 24 89 156 17 Terrain Rammed . | . . . . . Walls Destroyed . | . . . . . Machines Disabled . | . . . . . Actions | -11 -10 -10 -8 -7 --------- Run | Yrd Mat Sub Mat Fac Total 4294 | 185 904 950 1689 566 Wait 173 | . 79 19 67 8 Move 3640 | 153 740 876 1381 490 Hop . | . . . . . Pick Up 40 | 2 7 2 27 2 Fast Attach 16 | 1 2 . 11 2 Attach 13 | . . 1 9 3 Detach 6 | . . . 4 2 Swap 75 | 3 18 24 27 3 Drop 33 | 2 9 1 21 . Fire 266 | 24 47 27 119 49 Melee 7 | . . . . 7 Ram 6 | . 2 . 4 . Kick . | . . . . . Crush 19 | . . . 19 . Escape Stasis . | . . . . . Rewire . | . . . . . Trap . | . . . . . Miscellaneous . | . . . . . Route ------- -11/Scrapyard -10/Materials (discovered 5 exits: [*Mat x3] / [*Min] / *Sub) -10/Subcaves -8/Materials -7/Factory History --------- Turn | Location | Event 12 | -11/Scrapyard | Discovered new exit (range 1) 253 | -11/Scrapyard | Entered Materials 292 | -10/Materials | Discovered new exit (range 12) 303 | -10/Materials | Build established: Mutant 421 | -10/Materials | Discovered new exit (range 8) 994 | -10/Materials | Discovered new exit (range 5) 1072 | -10/Materials | Discovered new exit (range 5) 1215 | -10/Materials | Discovered new exit (range 7) 1296 | -10/Materials | Entered Subcaves 1477 | -10/Subcaves | Ambushed by Subdweller buried in earth 1940 | -10/Subcaves | Visited Clippyterm 1949 | -10/Subcaves | Learned Research machine intel 2157 | -10/Subcaves | Ambushed by angry Subdweller bent on revenge 2197 | -10/Subcaves | Shifting Twisted Machinery released Flamer 2218 | -10/Subcaves | Shifting Twisted Machinery released Sub. Machine Gun 2455 | -10/Subcaves | Discovered new exit (range 3) 2470 | -10/Subcaves | Entered Materials 2470 | -8/Materials | Evolved 4 slots: Utility x2, Weapon x2 2701 | -8/Materials | Lost 3 parts (1p2w) 3150 | -8/Materials | Lost 3 parts (1u2w) 3315 | -8/Materials | Core integrity fell below 50% 3956 | -8/Materials | Discovered new exit (range 8) 4153 | -8/Materials | Build established: Gunner 4320 | -8/Materials | Repaired Mni. Grenade Launcher 4819 | -8/Materials | Build established: Tank 5316 | -8/Materials | Entered Factory 5316 | -7/Factory | Evolved 2 slots: Propulsion x1, Utility x1 6024 | -7/Factory | Cargo convoy interrupted 6082 | -7/Factory | Self-destructed Last Messages --------------- 06024_ ALERT: Cargo convoy interrupted, initiating access lockdown. [Achievement: Jackpot] 06027_ Acquired 35 matter. 06031_ Acquired 2 matter. 06033_ Subcomponent Replicator disabled. 06035_ Destroyed Lgt. Nuclear Core. 06035_ G-47 Trooper knocked back. 06038_ Overheating: System interference. 06038_ Assault Cannon temporarily disabled. 06040_ Acquired 8 matter. 06046_ G-47 Trooper destroyed. 06049_ Acquired 23 matter. 06078_ K-01 Serf collects debris. 06081_ C-45 Heavy ARC bursts open, deploying its payload. 06081_ G-50 Soldier unfolds itself. 06081_ B-48 Gladiator unfolds itself. 06081_ G-47 Trooper unfolds itself. 06081_ I-36 Angel unfolds itself. Map ----- +----------------------------------------------------+ | "" "" # #?????????????????????????????????#^ | | """ """ # #?????????????????????????????????# " | | """ """ # #?????????????????????????????????# " | | """ """ # #?????????????????????????????????# " | | # #?????????????????????????????????# | | [ ! # #?????????????????????????????????# | | ######### #?????????????????????????????????### | | ????????# #?????????????????????????????????###+ | | ????????# #?? ???????????????""???????????# | | ????????# #?? ?????????????""???????????# | | ????????# #?? #???????????? ???????????# | | ????????# ??# #???????????? ???????????# | | ????????# ??# #???????????? ???????????# | | ???????## ### ###########+#+########????# | | ???????# #????# | | ???????# #????# | | ???????+ ^ ###??# | | ????????? """??"""" ^ # ##?# | | ?????????? """"""""" ^ # #?# | | ???????????# ^ """"""""" *# ### | | ???????????# """"""""" = * ######### | | ???????????# """"""""" % "" "" | | ???????????# % """"""""" ""F"" | | ???????????#k % """k | | ????????#### r gb | | ? %% % r ! @%k bg% i | | ######"###########k########## #########+### | | ??????????????????# ! #??# #??# ? | | ??????????????????# #??# #??#= """"""" | | ??????????????????# "" """ #??# #??# | | ??????????????????# """"" """"" #??? ???# """"""" | | ??????????????????# """"" """"" #??? ???# | | ??????????????????# #??? ???########## | | ??????????????????# """ #????????????????? | | ??????????????????# """"" #????????????????? | | ??????????????????# """"" !] #????????????????? | | ??????????????????# !]] #????????????????? | | ??????????????????# ! !] #????????????????? | | ??????????????????###############????????????????? | | ?????????????????????????????????????????????????? | | ?????????????????????????????????????????????????? | | ?????????????????????????????????????????????????? | | ?????????????????????????????????????????????????? | | ?????????????????????????????????????????????????? | | ?????????????????????????????????????????????????? | | ?????????????????????????????????????????????????? | | ?????????????????????????????????????????????????? | | ?????????????????????????????????????????????????? | | ?????????????????????????????????????????????????? | | ?????????????????????????????????????????????????? | +----------------------------------------------------+ Best States ------------- Heat Dissipation 41 Energy Generation 15 Energy Capacity 250 Matter Stores 300 Matter Capacity 300 Sight Range 18 Terrain Scan Range 16 Terrain Scan Density 85 Armor Coverage 900 Resistance: KI 20 Resistance: TH 10 Evasion (%) 41 Target Analysis 5 Recoil Reduction 2 Item Schematics ----------------- None Robot Schematics ------------------ None Fabricated ------------ Nothing Repaired ---------- Mni. Grenade Launcher | 32% | -8/Materials Studied --------- None Alien Tech Used ----------------- None Achievements -------------- Art Critic Construction Begets Destruction DATA ERROR: Steam Global Achievement% Do Not Disturb For Emergencies Only I Have A Map? Jackpot Organ Harvest Overwhelming Spot Them First There's More Where That Came From Tune-up Well Done Challenges ------------ None Game ------ Seed CombatSubdwellerChainsaw Manual? 0 Play Time 00:59:02 Cumulative 73.4 hours Start 2025.10.22 @ 10:05:50 End 2025.10.23 @ 08:25:18 Sessions 3 Manual Loads 0 Difficulty Rogue Special Mode None Game No. 90 Rogue 60 Adventurer 30 Explorer 0 Win Type - Total 0 Types 0/0/0/0/0/0/0/0/0/0 Lore% 39 Gallery% 38 Achievement% 20 Wizard Run 0 Options --------- Layout 1 ASCII 0 Keyboard 1 Movement Arrows Keybinds 0 Fullscreen 1 Font 24/Terminus Map View 50x35 Zoom Use 0% Tactical HUD 1 Map Filters NONE Filters NONE Steam 1 RUN: f7400767-4e0d-4a89-a20b-fa313253a6c7